Workbook

Sheet Sayfa1
A1: BORDRO MAAŞ HESAPLAMALARI
A4: A | E4: B | J4: C | O4: D | T4: E | Y4: F | AD4: G | AI4: H | AN4: I
A5: TOPLAM KAZANÇ | E5: % 14 İŞÇİ SSK PiR | J5: % 14 İŞÇİ SSK PiR | O5: A - ( B + C ) G.V. MATRAH | T5: D x %15 İSTİSNA G.V. | Y5: (D - E) x % 15 GELİR VERG | AD5: A x %0 7,59 DAMGA VER | AI5: B + C + F + G KESİNT. TOP. | AN5: A - H NET ÖDENEN
A8: 6,476.00 | E8: =A8*14% -> 906.64 | J8: =A8*1% -> 64.76 | O8: =A8-(E8+J8) -> 5,504.60 | T8: =O8*15/100 -> 825.69 | Y8: =(O8*15/100)-(825.05) -> 0.64 | AD8: =A8*7.59/1000 - (49.11) -> 0.04 | AI8: =+E8+J8+Y8+AD8 -> 972.08 | AN8: =A8-AI8 -> 5,503.92
A13: ÖDEME TAHAKKUKLARI
A16: SGK AHAKKUKU
D26: Sıra | F26: AÇIKLAMA | X26: SGK Marahı | AC26: Prim Oran % | AH26: Pirim Tutarı
D28: 1 | F28: KISA VADELİ SİGORTA KOLLARI PİRİMİ | X28: =A8 -> 6,476.00 | AC28: 2.00% | AH28: =AC28*X28 -> 129.52
D30: 2 | F30: MALÜLLÜK YAŞLILIK VE ÖLÜM SİG. PİRİMİ | X30: =X28 -> 6,476.00 | AC30: 20.00% | AH30: =AC30*X30 -> 1,295.20
D32: 3 | F32: GENEL SAĞLIK SİGORTASI PİRİMİ | X32: =X30 -> 6,476.00 | AC32: 12.50% | AH32: =AC32*X32 -> 809.50
D34: 4 | F34: İŞSİZLİK SİGORTASI PİRİMİ | X34: =X32 -> 6,476.00 | AC34: 3.00% | AH34: =AC34*X34 -> 194.28
X36: TOPLAM PİRİM | AH36: =AH28+AH30+AH32 -> 2,234.22
D38: 5510 SAYILI KANUN İNDİRİMİ ORANI | R38: 5% | AH38: =X28*R38 -> 323.80
X40: NET PİRİM | AH40: =AH36-AH38 -> 1,910.42
X42: DAMGA VERGİSİ | AH42: 0.00
X44: İŞSİZLİK TUTARI | AH44: =+AH34 -> 194.28
X46: ÖDENECEK NET TUTAR | AH46: =AH40+AH44 -> 2,104.70
A50: MUHTASAR TAHAKKUKU
D64: Türü | L64: MaTrah | U64: Tahakkuk | AD64: Vade
D65: 0003 - STPJ | L65: =O8 -> 5,504.60 | U65: =Y8 -> 0.64
D67: 1046 - TDMG | L67: =A8 -> 6,476.00 | U67: =AD8 -> 0.04
D69: Ödenecek Maliyeti: | U69: =U65+U67 -> 0.68
A79: İCMAL | D79: SGK | M79: VERGI | U79: ÜCRET | AD79: TOPLAM MALİYET | AK79: SGK + VERGİ
D82: =AH46 -> 2,104.70 | M82: =+U69 -> 0.68 | U82: =+AN8 -> 5,503.92 | AD82: =D82+M82+U82 -> 7,609.30 | AK82: =D82+M82 -> 2,105.38
